bitfinex/quotes_ETHUSD_20240824
["timestamp","ask_amount","ask_price","bid_price","bid_amount"]
[1724533310017,0.77517926,2793.6,2793.0,7.31]
[1724533310018,4.35478926,2793.6,2793.0,7.31]
[1724533310222,2.4248,2793.7,2793.0,7.31]
[1724533310223,2.4248,2793.7,2793.1,3.58016]
[1724533311204,6.0043,2793.7,2793.1,3.58016]
[1724533313515,9.58388,2793.7,2793.1,3.58016]
[1724533313855,3.57983,2793.5,2793.0,7.31]
[1724533313999,4.521483,2793.5,2793.0,7.31]
[1724533314415,2.2572,2793.4,2793.0,7.31]
[1724533315901,2.2572,2793.4,2793.0,10.89037]
[1724533316302,2.2572,2793.4,2793.0,7.31]
[1724533316519,3.58001,2793.3,2793.0,7.31]
[1724533317959,2.840921,2793.2,2793.0,7.31]
[1724533318115,2.840921,2793.2,2792.7,31.92]
[1724533318116,2.840921,2793.2,2792.7,19.7]
[1724533318313,2.840921,2793.2,2792.7,23.28076]
[1724533318529,2.840921,2793.2,2792.8,3.58063]
[1724533318724,2.2572,2793.2,2792.8,3.58063]
[1724533318960,2.2572,2793.2,2792.7,23.28076]
[1724533319393,5.83721,2793.3,2792.8,3.58061]
[1724533320149,5.83721,2793.3,2792.7,19.7]
[1724533321296,5.83721,2793.3,2792.7,23.28075]
[1724533321491,6.778911,2793.3,2792.7,23.28075]
[1724533322001,6.778911,2793.3,2792.7,3.58075]
[1724533322195,5.83721,2793.3,2792.7,3.58068]
[1724533322353,5.83721,2793.3,2792.7,7.16136]
[1724533322720,2.2572,2793.3,2792.8,3.95301095]
[1724533323124,2.2572,2793.3,2792.8,3.95294095]
[1724533323431,2.2572,2793.3,2792.9,3.58046]
[1724533323728,2.2572,2793.3,2792.8,0.37239095]
[1724533323907,2.2572,2793.3,2792.8,3.95300095]
[1724533325584,5.83719,2793.3,2792.8,0.37239095]
[1724533330522,2.2572,2793.3,2792.8,3.95300095]
[1724533330725,2.2572,2793.3,2792.8,3.95294095]
[1724533331026,2.2572,2793.3,2793.0,3.58029]
[1724533332231,2.2572,2793.3,2792.9,4.13038]
[1724533332787,2.4837,2793.2,2792.8,0.37239095]
[1724533333029,2.4837,2793.2,2792.7,3.58074]
[1724533333330,2.4837,2793.2,2792.6,7.31]
[1724533333505,6.06385,2793.2,2792.7,0.55]
[1724533334055,2.4837,2793.2,2792.7,4.13074]
[1724533334256,2.4837,2793.2,2792.8,3.58061]
[1724533339004,2.4837,2793.2,2792.8,7.16122]
[1724533339482,2.2955,2793.5,2793.1,3.58025]
[1724533340487,2.2955,2793.5,2792.9,7.7108]
[1724533340786,2.2955,2793.5,2792.9,4.1304]
[1724533341380,2.2955,2793.4,2792.9,4.1304]
[1724533341656,2.2955,2793.3,2792.8,0.37219582]
[1724533341815,2.2955,2793.2,2792.8,0.37219582]
[1724533342371,2.2955,2793.2,2792.7,7.16137]
[1724533342996,2.2955,2793.2,2792.7,3.58068]
[1724533343517,2.2955,2793.2,2792.6,7.31]
[1724533343681,2.2955,2793.0,2792.6,7.31]
[1724533344286,2.2955,2793.0,2792.7,3.58068]
[1724533344834,2.2955,2793.0,2792.6,7.68298051]
[1724533344835,2.2955,2793.0,2792.9,3.5805]
[1724533345035,2.2955,2793.3,2793.0,3.5803]
[1724533345177,2.2955,2793.6,2793.1,3.58024]
[1724533345583,2.2955,2793.6,2793.1,3.58014]
[1724533345808,2.2955,2793.6,2793.3,3.57991]
[1724533348598,2.2713,2794.1,2793.5,3.57971]
[1724533349133,2.2713,2794.1,2793.6,3.5796]
[1724533350117,2.2713,2794.1,2793.8,3.57931]
[1724533350315,2.2713,2794.1,2793.9,0.55]
[1724533352150,2.2713,2794.3,2794.1,0.55]
[1724533353723,2.0713,2794.3,2793.9,4.12921]
[1724533355773,6.57774,2795.1,2793.5,6.929935]
[1724533355774,3.57898,2794.1,2793.5,6.929935]
[1724533356069,3.57898,2794.1,2793.3,3.57995]
[1724533356070,3.57919,2794.0,2793.3,3.57995]
[1724533356366,3.57923,2793.9,2793.3,3.57995]
[1724533356787,3.57948,2793.7,2793.1,3.5802]
[1724533356954,3.57948,2793.7,2792.9,17.821155]
[1724533357251,2.2765,2793.6,2792.9,14.240695]
[1724533357650,3.57983,2793.5,2792.9,17.821115]
[1724533357856,3.57983,2793.5,2793.0,3.58036]
[1724533358261,3.57983,2793.5,2792.9,14.240695]
[1724533358577,3.57983,2793.5,2793.0,0.55]
[1724533358927,2.2765,2793.4,2793.0,0.55]
[1724533362146,2.2765,2793.4,2792.9,7.31]
[1724533362348,2.2765,2793.4,2792.9,10.89047]
[1724533363452,2.2765,2793.4,2793.0,0.55]
[1724533363686,2.2765,2793.4,2793.1,3.5802]
[1724533363843,2.2765,2793.4,2793.2,0.55]
[1724533365263,2.2765,2793.4,2793.0,0.55]
[1724533366968,5.85649,2793.3,2793.0,0.55]
[1724533367184,5.85649,2793.3,2792.9,7.31]
[1724533368211,5.85649,2793.3,2793.0,0.55]
[1724533368505,2.2765,2793.2,2793.0,0.55]
[1724533369357,3.58025,2793.1,2793.0,0.55]
[1724533369857,2.4198,2792.9,2792.5,7.31]
[1724533370293,2.4198,2792.9,2792.5,0.56018354]
[1724533370652,2.4198,2792.9,2792.4,0.56018354]
[1724533371186,2.4198,2792.9,2792.5,4.14118957]
[1724533371364,2.4198,2792.9,2792.4,0.56018957]
[1724533371885,2.4198,2792.9,2792.5,0.55]
[1724533373546,2.4198,2792.9,2792.4,1.11018957]
[1724533374213,3.58052,2792.9,2792.4,0.55]
[1724533374503,2.46,2792.8,2792.4,0.55]
[1724533375009,2.46,2792.8,2792.4,4.13114]
[1724533375571,2.46,2792.8,2792.4,0.55]
[1724533379354,3.58137,2792.3,2792.1,0.1334613]
[1724533379699,2.46,2792.2,2792.1,0.1334613]
[1724533381105,6.0414,2792.2,2792.1,0.1334613]
[1724533382014,6.0414,2792.2,2792.1,0.6834613]
[1724533383381,6.0414,2792.2,2792.1,0.1334613]
[1724533384007,10.585068,2792.2,2792.1,0.1334613]
[1724533384615,2.46,2791.8,2791.5,0.005]
[1724533384966,6.04217,2791.6,2791.5,0.005]
[1724533385171,2.46,2791.6,2791.5,0.005]
[1724533385413,6.04217,2791.6,2791.5,0.005]
[1724533386172,7.004591,2791.6,2791.5,0.005]
[1724533390316,10.586761,2791.6,2791.5,0.005]
[1724533393426,7.004591,2791.6,2791.5,0.005]
[1724533395090,2.3427,2792.2,2791.5,0.005]
[1724533395438,2.3427,2792.2,2791.7,3.58193]
[1724533395567,2.3427,2792.2,2791.8,0.55]
[1724533396011,2.3427,2792.2,2791.7,3.58204]
[1724533396222,5.92411,2792.2,2791.8,0.55]
[1724533396428,3.293239,2792.2,2791.8,0.55]
[1724533396720,6.874669,2792.2,2791.8,0.55]
[1724533396922,6.874669,2792.2,2791.7,4.13202]
[1724533397073,5.92413,2792.2,2791.7,4.13202]
[1724533397277,5.92413,2792.2,2791.7,0.55]
[1724533397619,3.58153,2792.1,2791.6,0.55]
[1724533397969,3.58166,2792.0,2791.6,0.55]
[1724533398202,5.92413,2792.2,2791.6,0.55]
[1724533398203,2.3427,2791.9,2791.6,0.55]
[1724533398410,2.57697,2791.9,2791.5,0.005]
[1724533399222,2.3427,2791.9,2791.5,3.58729]
[1724533399407,2.3427,2791.9,2791.6,0.55]
[1724533399972,2.3427,2792.3,2791.6,0.55]
[1724533400624,2.3427,2792.3,2791.8,3.58188]
[1724533400966,2.3427,2792.3,2791.9,0.55]
[1724533401547,6.874509,2792.3,2791.9,0.55]
[1724533401709,5.924,2792.3,2791.7,0.55]
[1724533401908,3.58153,2792.1,2791.7,0.55]
[1724533402147,3.58153,2792.1,2791.5,0.555]
[1724533402410,2.3427,2792.0,2791.5,0.555]
[1724533403352,2.3427,2792.0,2791.5,4.13722]
[1724533403553,2.3427,2792.0,2791.5,0.555]
[1724533404181,2.3427,2792.4,2791.9,3.58169]
[1724533404356,5.92388,2792.4,2792.0,0.55]
[1724533404720,5.92388,2792.4,2791.8,3.58181]
[1724533404721,5.92388,2792.4,2791.9,0.55]
[1724533405030,3.58087,2792.7,2791.9,0.55]
[1724533405234,3.58091,2792.6,2792.0,3.58155]
[1724533405568,2.3427,2792.5,2792.1,0.55]
[1724533406264,3.0,2793.3,2792.2,3.58136]
[1724533406265,2.3427,2792.8,2792.2,3.58136]
[1724533406420,2.3427,2792.8,2792.3,0.55]
[1724533406619,3.58086,2792.7,2792.1,0.55]
[1724533406820,7.16174,2792.7,2792.1,0.55]
[1724533407038,3.58091,2792.6,2792.1,0.55]
[1724533407650,2.3427,2792.5,2792.1,0.55]
[1724533408171,5.92381,2792.5,2791.9,4.14200034]
[1724533408348,5.92381,2792.5,2791.9,3.58175]
[1724533408555,5.92381,2792.5,2791.9,4.14200034]
[1724533409262,9.50494,2792.5,2792.0,1.11025034]
[1724533409532,9.50494,2792.5,2792.0,0.55]
[1724533409692,5.92381,2792.5,2792.0,1.11025034]
[1724533410186,9.50493,2792.5,2792.0,1.11025034]
[1724533410340,3.58116,2792.4,2792.0,1.11025034]
[1724533410541,3.58116,2792.4,2792.0,0.55]
[1724533410770,6.9693474,2792.5,2792.0,1.11025034]
[1724533411553,6.9693474,2792.5,2792.0,0.55]
[1724533411985,6.9693474,2792.5,2792.0,4.69192149]
[1724533412287,3.58111,2792.5,2792.0,4.13165]
[1724533412459,3.58111,2792.5,2792.0,4.69190406]
[1724533414801,3.58111,2792.5,2792.0,4.13165]
[1724533415106,3.58111,2792.5,2792.0,5.25216361]
[1724533415390,3.58111,2792.5,2792.0,5.25216587]
[1724533415705,4.533224,2792.5,2792.0,1.11025713]
[1724533416245,3.58111,2792.5,2792.0,1.11025713]
[1724533416989,3.58115,2792.4,2792.0,1.11025713]
[1724533419923,3.58115,2792.4,2792.0,0.55]
[1724533420998,2.3788,2792.3,2791.9,0.55]
[1724533422000,3.58151,2792.2,2791.6,27.01]
[1724533422215,3.58162,2792.1,2791.6,27.01]
[1724533422530,3.58162,2792.1,2791.6,28.40830277]
[1724533422885,2.3788,2791.9,2791.6,27.01]
[1724533423632,5.96068,2791.9,2791.6,27.01]
[1724533424891,5.96068,2791.9,2791.7,0.55]
[1724533425094,7.11089283,2791.9,2791.7,0.55]
[1724533429234,10.69277283,2791.9,2791.7,0.55]
[1724533429544,3.58191,2791.8,2791.7,0.55]
[1724533430646,7.11089283,2791.9,2791.7,0.55]
[1724533431309,3.58191,2791.8,2791.7,0.55]
[1724533431486,3.58191,2791.8,2791.5,0.005]
[1724533431487,3.58217,2791.6,2791.5,0.005]
[1724533431691,6.05577,2791.6,2791.5,0.005]
[1724533432336,9.63794,2791.6,2791.5,0.005]
[1724533446557,11.03714915,2791.6,2791.5,0.005]
[1724533446754,12.24779209,2791.6,2791.5,0.005]
[1724533446959,3.069631,2792.2,2791.5,4.98642915]
[1724533447159,3.58148,2792.2,2791.7,1.39920915]
[1724533447377,1.39920915,2792.1,2791.8,0.55]
[1724533447687,6.05539,2791.9,2791.8,0.55]
[1724533447855,3.582,2791.8,2791.5,0.005]
[1724533448057,6.05539,2791.9,2791.5,0.005]
[1724533448446,3.58194,2791.8,2791.5,0.005]
[1724533449876,2.4736,2791.9,2791.5,0.005]
[1724533450075,3.58179,2791.9,2791.5,0.005]
[1724533450450,3.58179,2791.9,2791.5,0.555]
[1724533450698,7.16349,2792.0,2791.5,2.81]
[1724533452078,3.58186,2791.9,2791.5,2.81]
[1724533452258,3.58173,2792.0,2791.5,2.81]
[1724533452989,7.16349,2792.0,2791.5,2.81]
[1724533453203,7.16349,2792.0,2791.5,0.555]
[1724533453358,3.58182,2791.9,2791.5,0.555]
[1724533453561,6.04212,2791.9,2791.5,0.555]
[1724533453751,3.58196,2791.8,2791.5,0.555]
[1724533453955,4.82189415,2791.9,2791.5,0.005]
[1724533453956,3.58217,2791.6,2791.5,0.005]
[1724533459260,9.62464,2791.6,2791.5,0.005]
[1724533464575,10.62464,2791.6,2791.5,0.005]
[1724533467778,14.20681,2791.6,2791.5,0.005]
[1724533467983,15.76741192,2791.6,2791.5,0.005]
[1724533471768,3.58284,2791.1,2790.8,2.4083]
[1724533471968,3.58294,2791.0,2790.9,0.55]
[1724533474326,7.16588,2791.0,2790.9,0.55]
[1724533474482,3.58333,2790.7,2790.6,0.005]
[1724533476583,3.58312,2790.9,2790.6,0.005]
[1724533477577,7.1663,2790.9,2790.6,0.005]
[1724533477904,3.5832,2790.8,2790.6,0.005]
[1724533480085,3.58333,2790.7,2790.6,0.005]
[1724533481718,3.58317,2790.9,2790.6,0.005]
[1724533482311,3.58321,2790.8,2790.6,0.005]
[1724533485920,3.58333,2790.7,2790.6,0.005]
[1724533486087,9.62246,2790.7,2790.6,0.005]
[1724533486282,10.72462692,2790.7,2790.6,0.005]
[1724533488094,3.58318,2790.9,2790.6,0.005]
[1724533488294,3.58321,2790.8,2790.6,0.005]
[1724533488587,3.58318,2790.9,2790.6,0.005]
[1724533488788,3.58333,2790.7,2790.6,0.005]
[1724533489039,10.311313,2790.7,2790.6,0.005]
[1724533497356,6.727983,2790.7,2790.6,0.005]
[1724533498906,4.299983,2790.7,2790.6,0.005]
[1724533499738,3.5832,2790.8,2790.6,0.005]
[1724533500550,4.98253915,2790.7,2790.6,0.005]
[1724533500846,5.91703,2790.7,2790.6,0.005]
[1724533503152,3.58333,2790.7,2790.6,0.005]
[1724533508901,7.16666,2790.7,2790.6,0.005]
[1724533509163,12.00142606,2790.7,2790.6,0.005]
[1724533510452,15.58475606,2790.7,2790.6,0.005]
[1724533510770,16.6794,2790.6,2790.5,1e-05]
[1724533511095,22.28913425,2790.6,2790.5,1e-05]
[1724533511333,22.46550489,2790.6,2790.5,1e-05]
[1724533511773,18.88205489,2790.6,2790.5,1e-05]
[1724533511948,13.69781404,2790.6,2790.5,1e-05]
[1724533512376,12.29860489,2790.6,2790.5,1e-05]
[1724533512690,10.91170915,2790.6,2790.5,1e-05]
[1724533515735,3.58345,2790.6,2790.5,2.42441]
[1724533515963,3.58345,2790.6,2790.5,2.97441]
[1724533516690,3.58345,2790.6,2790.5,0.55001]
[1724533517039,7.1669,2790.6,2790.5,0.55001]
[1724533517486,8.26970092,2790.6,2790.5,1e-05]
[1724533517830,4.68625092,2790.6,2790.5,1e-05]
[1724533518080,3.58345,2790.6,2790.5,1e-05]
[1724533519649,7.1669,2790.6,2790.5,1e-05]
[1724533520047,3.58345,2790.6,2790.5,1e-05]
[1724533520245,7.1669,2790.6,2790.5,1e-05]
[1724533520660,3.58345,2790.6,2790.5,1e-05]
[1724533526167,3.58336,2790.7,2790.5,1e-05]
[1724533527827,3.58314,2790.9,2790.5,1e-05]
[1724533528872,3.58335,2790.7,2790.5,1e-05]
[1724533529119,3.78550915,2790.6,2790.5,1e-05]
[1724533529327,10.95240915,2790.6,2790.5,1e-05]
[1724533530685,9.5532,2790.6,2790.5,1e-05]
[1724533530886,10.95240915,2790.6,2790.5,1e-05]
[1724533534014,17.53585915,2790.6,2790.5,1e-05]
[1724533534233,19.36110997,2790.6,2790.5,1e-05]
[1724533537535,22.94455997,2790.6,2790.5,1e-05]
[1724533540809,25.55074075,2790.6,2790.5,1e-05]
[1724533540997,29.13419075,2790.6,2790.5,1e-05]
[1724533541192,9.54644,2789.5,2789.4,0.53833183]
[1724533541441,3.77590915,2789.5,2789.3,0.1334613]
[1724533541637,7.17,2789.4,2789.3,0.1334613]
[1724533542535,8.26459091,2789.4,2789.3,0.1334613]
[1724533543012,14.22629091,2789.4,2789.3,0.1334613]
[1724533547123,17.22629091,2789.4,2789.3,0.1334613]
[1724533549353,20.81129091,2789.4,2789.3,0.1334613]
[1724533549908,20.81129091,2789.4,2789.3,1.3e-06]
[1724533549909,24.39629091,2789.4,2789.3,1.3e-06]
[1724533554977,3.58692,2787.9,2787.8,2.3953]
[1724533555214,3.58692,2787.9,2787.6,2.4511]
[1724533555982,7.17345,2788.1,2787.6,2.4511]
[1724533556183,3.5869,2788.0,2787.6,2.4511]
[1724533556584,7.17381,2788.0,2787.6,2.4511]
[1724533556786,7.17354,2788.1,2787.6,2.4511]
[1724533557097,3.58687,2788.0,2787.6,2.4511]
[1724533557732,3.58687,2788.0,2787.6,2.2511]
[1724533558506,3.58694,2787.9,2787.6,2.2511]
[1724533559230,7.17396,2787.9,2787.6,2.2511]
[1724533559712,3.58709,2787.8,2787.6,2.2511]
[1724533560119,3.58718,2787.7,2787.6,2.2511]
[1724533560329,3.58718,2787.7,2787.2,6.32]
[1724533560645,3.58747,2787.5,2787.0,13.61920915]
[1724533560833,3.58747,2787.5,2787.1,2.4511]
[1724533561563,3.58759,2787.4,2787.1,2.4511]
[1724533561900,3.5877,2787.3,2787.1,2.4511]
[1724533562300,3.5877,2787.3,2786.8,1.39920915]
[1724533562301,3.58783,2787.2,2786.8,2.4511]
[1724533562537,1.39920915,2787.6,2786.8,2.4511]
[1724533562747,3.58778,2787.3,2786.9,0.3]
[1724533562952,3.58758,2787.4,2786.9,0.3]
[1724533563114,3.58781,2787.3,2786.9,0.3]
[1724533563444,3.58785,2787.2,2786.8,2.4511]
[1724533563831,3.58821,2786.9,2786.8,2.4511]
[1724533564449,3.58821,2786.9,2786.5,3.98377045]
[1724533564604,3.58821,2786.9,2786.5,3.73377045]
[1724533566459,3.58821,2786.9,2786.5,2.4511]
[1724533566954,3.58798,2787.1,2786.5,1.5511]
[1724533567709,3.58783,2787.2,2786.5,1.5511]
[1724533568337,3.58811,2787.0,2786.5,1.5511]
[1724533569342,3.5883,2786.9,2786.5,1.5511]
[1724533569932,7.1763,2787.0,2786.5,1.5511]
[1724533570458,3.58811,2787.0,2786.5,1.5511]
[1724533570666,3.58823,2786.9,2786.5,1.5511]
[1724533570969,2.2652,2786.9,2785.9,5.99597]
[1724533571290,3.58872,2786.6,2785.9,2.4066]
[1724533571406,3.58872,2786.6,2785.9,5.99608]
[1724533571605,3.58886,2786.4,2785.9,5.99608]
[1724533572366,3.5886,2786.6,2785.9,2.4066]
[1724533572529,0.35886,2786.5,2785.9,2.4066]
[1724533572906,3.58906,2786.3,2785.9,2.4066]
[1724533574355,3.58911,2786.2,2785.7,3.58972]
[1724533575486,3.58911,2786.2,2785.6,2.4768]
[1724533576298,3.58911,2786.2,2785.6,6.06668]
[1724533576603,3.58911,2786.2,2785.7,3.58974]
[1724533576806,3.58911,2786.2,2785.6,2.4768]
[1724533576993,3.58924,2786.1,2785.6,2.4768]
[1724533577201,3.58911,2786.2,2785.6,6.06666]
[1724533577858,3.58911,2786.2,2785.7,0.55]
[1724533578372,7.17833,2786.2,2785.7,0.55]
[1724533578698,3.58911,2786.2,2785.7,0.55]
[1724533579894,7.17833,2786.2,2785.7,0.55]
[1724533580096,3.58924,2786.1,2785.7,0.55]
[1724533582626,3.58939,2786.0,2785.7,0.55]
[1724533582798,3.58939,2786.0,2785.5,0.55]
[1724533583575,3.063035,2786.1,2785.2,6.32]
[1724533583806,3.94768,2786.5,2785.2,6.32]
[1724533583807,3.59011,2785.5,2785.2,6.32]
[1724533584082,3.59015,2785.4,2785.1,19.7]
[1724533584280,2.3452,2785.2,2783.9,2.4768]
[1724533584610,2.3452,2785.2,2784.3,3.59148]
[1724533584611,3.59079,2784.9,2784.3,3.59148]
[1724533584818,3.59079,2784.9,2784.4,2.4768]
[1724533585729,3.59082,2784.9,2784.4,2.4768]
[1724533586028,3.59001,2785.6,2784.7,3.59095]
[1724533586234,3.59015,2785.4,2784.8,2.4768]
[1724533586545,5.93487,2785.8,2784.9,3.59068]
[1724533586757,3.58917,2786.2,2785.0,2.4768]
[1724533586918,3.58891,2786.4,2785.3,2.4768]
[1724533587110,3.58899,2786.3,2785.7,3.58973]
[1724533587307,3.58899,2786.3,2785.5,3.58997]
[1724533587511,2.3452,2786.7,2785.5,3.58997]
[1724533587512,3.58847,2786.8,2786.0,3.58936]
[1724533587743,4.276249,2786.8,2786.2,3.5891]
[1724533588053,4.53225,2787.0,2786.3,4.13895]
[1724533588266,0.94412,2787.0,2786.4,3.58883]
[1724533588422,3.58786,2787.2,2786.4,3.58883]
[1724533588751,3.58786,2787.2,2786.5,3.58871]
[1724533588955,3.58786,2787.2,2786.6,2.3992]
[1724533589167,5.89107,2787.8,2786.8,3.58823]
[1724533589168,3.58737,2787.6,2786.8,3.58823]
[1724533589455,4.535218,2787.6,2786.9,3.5882]
[1724533589657,0.947848,2787.6,2787.0,3.58805]
[1724533589853,0.947848,2787.6,2787.1,3.58786]
[1724533590052,4.535208,2787.6,2786.8,3.58829]
[1724533590355,4.535208,2787.6,2787.0,3.58806]
[1724533590558,5.89111,2787.8,2787.0,3.58806]
[1724533590852,5.89111,2787.8,2786.9,0.55]
[1724533590853,3.58733,2787.6,2786.9,0.55]
[1724533591033,2.304,2787.8,2786.7,3.58847]
[1724533591034,3.58769,2787.4,2786.7,3.58847]
[1724533591207,3.58772,2787.3,2786.8,0.55]
[1724533591404,3.58769,2787.4,2786.8,0.55]
[1724533592322,3.58769,2787.4,2786.6,2.3992]
[1724533592523,3.58783,2787.2,2786.6,5.98778]
[1724533593359,3.58769,2787.4,2786.6,5.98778]
[1724533593553,3.58735,2787.6,2786.9,3.58811]
[1724533594329,3.58735,2787.6,2787.0,3.58807]
[1724533598273,5.89109,2787.8,2787.1,3.58794]
[1724533598816,3.58722,2787.7,2787.0,3.58798]
[1724533599925,3.58734,2787.6,2787.0,3.58798]
[1724533600479,3.58758,2787.4,2786.8,3.58832]
[1724533603835,3.58734,2787.6,2786.8,3.58832]
[1724533604325,3.58753,2787.5,2786.8,3.58832]
[1724533604560,3.58757,2787.4,2786.8,3.58832]
[1724533604747,3.58757,2787.4,2786.8,3.58823]
[1724533605074,4.176474,2787.6,2786.9,3.5882]
[1724533606141,4.176474,2787.6,2787.0,3.58807]
[1724533606444,5.89111,2787.8,2787.2,3.5878]
[1724533606742,5.89111,2787.8,2787.3,3.58768]
[1724533606899,5.89111,2787.8,2787.2,3.5878]
[1724533607300,3.58718,2787.7,2787.0,3.58799]
[1724533607518,3.58746,2787.5,2786.8,3.58825]
[1724533607688,0.947829,2787.6,2786.9,3.58812]
[1724533607890,4.535139,2787.6,2787.0,0.55]
[1724533608117,3.58751,2787.5,2786.9,3.58812]
[1724533608536,0.947829,2787.6,2787.0,3.58806]
[1724533608832,4.535169,2787.6,2787.0,3.58806]
[1724533609790,4.535169,2787.6,2786.9,3.58812]
[1724533609992,5.94767,2787.4,2786.7,6.32]
[1724533610235,3.5879,2787.2,2786.7,6.32]
[1724533610444,3.5879,2787.2,2786.7,3.58844]
[1724533611342,3.58706,2787.8,2787.1,3.58786]
[1724533611492,3.0,2788.5,2786.9,3.5881]
[1724533611493,5.94764,2787.5,2786.9,3.5881]
[1724533611694,3.5876,2787.4,2786.7,3.58838]
[1724533612005,3.5876,2787.4,2786.8,0.55]
[1724533612736,3.5876,2787.4,2786.9,3.5882]
[1724533613095,2.3601,2787.5,2786.9,7.1764]
[1724533613295,3.0143216,2787.5,2786.9,3.5882]
[1724533613497,6.6018116,2787.5,2786.9,3.5882]
[1724533613948,3.0143216,2787.5,2786.9,3.58813]
[1724533614559,2.4795,2787.1,2786.5,3.58869]
[1724533614694,3.58758,2787.4,2787.0,3.58807]
[1724533614695,2.4795,2787.4,2787.0,3.58807]
[1724533614895,0.42418016,2787.3,2787.0,3.58807]
[1724533615635,0.42418016,2787.3,2786.6,3.58852]
[1724533615636,2.4795,2787.2,2786.6,3.58852]
[1724533615849,3.5883,2786.9,2786.3,0.56137709]
[1724533615998,2.4795,2787.1,2786.2,3.58903]
[1724533616337,3.58836,2786.8,2786.3,3.58898]
[1724533616649,2.4795,2786.9,2786.3,3.58898]
[1724533617917,6.06773,2786.9,2786.3,3.58898]
[1724533618117,2.4795,2786.9,2786.4,3.58885]
[1724533619855,2.4795,2786.9,2786.3,3.58898]
[1724533620061,0.631555,2786.8,2786.3,3.58898]
[1724533621229,4.219915,2786.8,2786.1,3.58916]
[1724533621429,4.219915,2786.8,2785.3,9.68864332]
[1724533621430,2.3114,2786.3,2785.7,3.58968]
[1724533621628,2.3114,2786.3,2785.5,2.4539]
[1724533621629,2.3114,2786.6,2786.2,3.589]
[1724533621862,2.3114,2786.6,2786.1,3.58914]
[1724533622059,2.3114,2786.6,2786.1,7.17828]
[1724533622369,2.3114,2786.6,2786.1,3.58914]
[1724533623056,6.5532235,2786.6,2785.9,3.58942]
[1724533623269,6.5532235,2786.6,2786.0,0.56143597]
[1724533623433,6.5532235,2786.6,2786.0,0.56145582]
[1724533623630,6.5532235,2786.6,2785.8,3.58961]
[1724533623873,3.58912,2786.2,2785.7,3.58971]
[1724533624057,2.3114,2786.1,2785.7,3.58971]
[1724533624226,2.3114,2786.1,2785.8,3.58962]
[1724533627284,2.3114,2786.1,2785.5,3.58995]
[1724533627285,2.3114,2786.1,2785.6,3.5898]
[1724533627581,2.3114,2786.1,2785.7,3.58973]
[1724533627790,2.901453,2786.1,2785.7,3.58973]
[1724533627955,2.3114,2786.0,2785.2,3.59039]
[1724533628284,3.58973,2785.8,2785.1,15.81045]
[1724533628482,3.58973,2785.8,2785.1,3.59045]
[1724533628682,3.58973,2785.8,2785.2,3.59039]
[1724533629000,3.58973,2785.8,2785.0,9.91056]
[1724533629001,3.59003,2785.5,2785.0,9.91055]
[1724533629142,5.89779,2785.6,2785.0,9.91055]
[1724533630197,3.59002,2785.5,2785.0,9.91055]
[1724533630501,0.590113,2785.7,2784.6,19.7]
[1724533630502,2.3078,2785.1,2784.6,19.7]
[1724533630754,2.3078,2785.1,2784.5,18.54]
[1724533630755,2.3078,2785.1,2784.5,9.9113]
[1724533630889,2.3078,2785.1,2784.6,3.59116]
[1724533631090,2.3078,2785.4,2784.9,3.59069]
[1724533631494,2.3078,2785.4,2784.8,3.5909]
[1724533631660,3.256576,2785.4,2784.8,3.5909]
[1724533631860,6.846756,2785.4,2784.8,3.5909]
[1724533632283,2.3078,2785.3,2784.6,3.59113]
[1724533632479,2.3078,2785.3,2784.5,9.9113]
[1724533632480,3.59053,2785.1,2784.5,9.9113]
[1724533632709,5.89817,2785.3,2784.6,3.59115]
[1724533632911,6.847007,2785.3,2784.7,3.59103]
[1724533633059,6.847007,2785.3,2784.6,3.59115]
[1724533633508,3.59041,2785.2,2784.6,3.59115]
[1724533634005,2.388,2785.1,2784.6,3.59115]
[1724533635208,2.388,2785.1,2784.5,6.32]
[1724533635617,3.0807247,2785.1,2784.6,3.59109]
[1724533635844,2.388,2784.8,2784.5,6.32]
[1724533637006,2.388,2784.5,2784.0,35.51185]
[1724533637218,2.388,2784.5,2784.0,3.59185]
[1724533637426,2.388,2784.5,2784.1,3.5918]
[1724533639419,2.388,2784.5,2783.9,9.91199]
[1724533639628,3.59144,2784.4,2783.9,9.91199]
[1724533639835,9.57112,2784.3,2783.7,0.1334613]
[1724533640006,7.27353633,2784.3,2783.7,0.1334613]
[1724533640412,10.86509633,2784.3,2783.7,0.1334613]
[1724533640735,7.27353633,2784.3,2783.7,0.1334613]
[1724533640902,2.388,2784.3,2783.7,0.1334613]
[1724533641233,2.388,2784.7,2783.7,0.1334613]
[1724533641530,2.388,2784.7,2784.3,3.59147]
[1724533641890,2.388,2784.7,2784.4,3.59142]
[1724533642087,2.388,2784.7,2784.4,3.59135]
[1724533642287,3.59044,2785.2,2784.4,3.59135]
[1724533642288,5.97861,2785.1,2784.4,3.59135]
[1724533642495,0.956905,2785.0,2784.4,3.59135]
[1724533642732,4.547595,2785.0,2784.2,3.61457922]
[1724533643374,2.388,2784.7,2784.2,3.61457922]
[1724533643744,5.97905,2784.7,2784.2,0.02296922]
[1724533644036,0.956905,2785.0,2784.2,4.16464922]
[1724533644037,3.344905,2785.0,2784.2,4.16464922]